bitfinex-derivatives/quotes_BTCF0:USTF0_20250803
["timestamp","ask_amount","ask_price","bid_price","bid_amount"]
[1754211512058,0.71266013,113760.0,113750.0,0.75608126]
[1754211516769,1.2868673,113760.0,113750.0,0.81974137]
[1754211520471,0.53683043,113760.0,113750.0,0.81974137]
[1754211520667,0.17603043,113760.0,113750.0,1.18054137]
[1754211522060,0.17603043,113760.0,113750.0,1.25941756]
[1754211528583,0.001,113760.0,113750.0,1.83362473]
[1754211528973,0.02467,113760.0,113750.0,1.83362473]
[1754211529376,0.02467,113760.0,113750.0,1.25941756]
[1754211533781,0.02367,113760.0,113750.0,1.25941756]
[1754211533982,0.02367,113760.0,113750.0,1.25741756]
[1754211534182,0.02467,113760.0,113750.0,1.26041756]
[1754211535084,0.02367,113760.0,113750.0,1.25741756]
[1754211535276,0.02367,113760.0,113750.0,1.25941756]
[1754211535783,0.02367,113760.0,113750.0,1.26041756]
[1754211535784,0.02467,113760.0,113750.0,1.26041756]
[1754211536082,0.02467,113760.0,113750.0,0.89961756]
[1754211536382,0.02467,113760.0,113750.0,1.26041756]
[1754211536682,0.02567,113760.0,113750.0,1.26041756]
[1754211537481,0.02467,113760.0,113750.0,1.25841756]
[1754211545288,0.02467,113760.0,113750.0,1.83262473]
[1754211545584,0.02467,113760.0,113750.0,2.09986473]
[1754211559198,0.02467,113760.0,113750.0,1.52565756]
[1754211559607,0.02467,113760.0,113750.0,1.16485756]
[1754211559795,0.02467,113760.0,113750.0,1.52565756]
[1754211561605,0.06235043,113760.0,113750.0,1.52565756]
[1754211562106,0.06235043,113760.0,113750.0,1.44678137]
[1754211570110,0.06235043,113760.0,113750.0,1.08598137]
[1754211570311,0.06235043,113760.0,113750.0,1.44678137]
[1754211570913,0.06235043,113760.0,113750.0,1.44578137]
[1754211571201,0.06235043,113760.0,113750.0,1.44778137]
[1754211571800,0.06235043,113760.0,113750.0,0.8735742]
[1754211572002,0.06135043,113760.0,113750.0,1.44778137]
[1754211572308,0.06135043,113760.0,113750.0,1.52665756]
[1754211579611,0.06135043,113760.0,113750.0,1.16585756]
[1754211579813,0.06135043,113760.0,113750.0,1.52665756]
[1754211582617,0.02367,113760.0,113750.0,1.52665756]
[1754211583615,0.06135043,113760.0,113750.0,1.52665756]
[1754211586423,0.06135043,113760.0,113750.0,1.16585756]
[1754211586623,0.06135043,113760.0,113750.0,1.52665756]
[1754211589919,0.06135043,113760.0,113750.0,1.16585756]
[1754211590123,0.06135043,113760.0,113750.0,1.52665756]
[1754211591819,0.02367,113760.0,113750.0,1.52665756]
[1754211592124,0.06135043,113760.0,113750.0,1.52665756]
[1754211592927,0.06135043,113760.0,113750.0,1.16585756]
[1754211593124,0.06135043,113760.0,113750.0,1.52665756]
[1754211595831,0.02367,113760.0,113750.0,1.52665756]
[1754211596127,0.06135043,113760.0,113750.0,1.52665756]
[1754211602230,0.06135043,113760.0,113750.0,1.44778137]
[1754211604132,0.06135043,113760.0,113750.0,1.44578137]
[1754211604329,0.06135043,113760.0,113750.0,1.44778137]
[1754211604535,0.06135043,113760.0,113750.0,1.44878137]
[1754211605131,0.06135043,113760.0,113750.0,1.08798137]
[1754211605329,0.06135043,113760.0,113750.0,1.44878137]
[1754211606330,0.03768043,113760.0,113750.0,2.02298854]
[1754211606629,0.06214043,113760.0,113750.0,2.02298854]
[1754211608130,0.06214043,113760.0,113750.0,2.02198854]
[1754211608330,0.06214043,113760.0,113750.0,2.02298854]
[1754211608934,0.06214043,113760.0,113750.0,1.66218854]
[1754211609126,0.06214043,113760.0,113750.0,2.02298854]
[1754211612335,0.06214043,113760.0,113750.0,2.10186473]
[1754211612537,0.06214043,113760.0,113750.0,1.52765756]
[1754211615746,0.06214043,113760.0,113750.0,1.52665756]
[1754211616046,0.06214043,113760.0,113750.0,1.52765756]
[1754211617854,0.06214043,113760.0,113750.0,2.10186473]
[1754211619452,0.03768043,113760.0,113750.0,2.10186473]
[1754211619658,0.37655,113780.0,113770.0,0.1838845]
[1754211619859,0.52570043,113780.0,113770.0,0.76313167]
[1754211621057,0.52670043,113780.0,113770.0,0.76313167]
[1754211621255,0.52770043,113780.0,113770.0,0.76313167]
[1754211622254,0.1758145,113770.0,113760.0,0.4114558]
[1754211622462,0.7391076,113770.0,113760.0,1.16147817]
[1754211622758,0.16490043,113770.0,113760.0,1.16147817]
[1754211622959,0.7391076,113770.0,113760.0,1.16147817]
[1754211623260,0.16490043,113770.0,113760.0,1.16147817]
[1754211624254,0.16490043,113770.0,113760.0,1.16247817]
[1754211628353,0.16490043,113770.0,113760.0,1.24135436]
[1754211628550,0.16490043,113770.0,113760.0,1.81556153]
[1754211628753,0.06214043,113770.0,113760.0,1.81556153]
[1754211631261,0.09411043,113770.0,113760.0,0.66714719]
[1754211631455,0.12391043,113770.0,113760.0,1.81556153]
[1754211632062,0.14705043,113770.0,113760.0,1.81556153]
[1754211632260,0.16818043,113770.0,113760.0,1.81556153]
[1754211635560,0.16818043,113770.0,113760.0,2.17636153]
[1754211636561,0.14705043,113770.0,113760.0,2.17636153]
[1754211636762,0.11508043,113770.0,113760.0,2.17636153]
[1754211636964,0.14705043,113770.0,113760.0,2.17636153]
[1754211637562,0.06214043,113770.0,113760.0,2.17636153]
[1754211639359,0.03768043,113770.0,113760.0,2.17636153]
[1754211639565,0.03768043,113770.0,113760.0,2.09748534]
[1754211639970,0.06098043,113770.0,113760.0,2.09748534]
[1754211640159,0.06098043,113770.0,113760.0,0.949071]
[1754211640353,0.06098043,113770.0,113760.0,2.09748534]
[1754211641269,0.06098043,113770.0,113760.0,2.36118534]
[1754211642068,0.49014,113790.0,113780.0,0.1868591]
[1754211642365,0.52782043,113790.0,113780.0,0.76106627]
[1754211642765,0.50669043,113790.0,113780.0,0.76106627]
[1754211643167,0.52782043,113790.0,113780.0,0.76106627]
[1754211643370,0.11592043,113790.0,113780.0,0.76106627]
[1754211643568,0.14789043,113790.0,113780.0,0.76106627]
[1754211643769,0.14989043,113790.0,113780.0,0.76106627]
[1754211644066,0.17102043,113790.0,113780.0,1.12186627]
[1754211644862,0.11792043,113790.0,113780.0,1.12186627]
[1754211645672,0.14989043,113790.0,113780.0,1.12186627]
[1754211646473,0.17102043,113790.0,113780.0,0.76106627]
[1754211650581,0.13334,113790.0,113780.0,0.76106627]
[1754211650781,0.17102043,113790.0,113780.0,0.76106627]
[1754211652376,0.17102043,113790.0,113780.0,0.1868591]
[1754211652674,0.17102043,113790.0,113780.0,0.76106627]
[1754211654379,0.53182043,113790.0,113780.0,0.76106627]
[1754211661288,0.53182043,113790.0,113780.0,0.1868591]
[1754211661489,0.53182043,113790.0,113780.0,0.76106627]
[1754211664688,0.49414,113790.0,113780.0,0.76106627]
[1754211665593,0.53182043,113790.0,113780.0,0.76106627]
[1754211667599,0.53182043,113790.0,113780.0,0.1868591]
[1754211667793,0.53182043,113790.0,113780.0,0.75000627]
[1754211667794,1.2818111,113790.0,113780.0,0.75000627]
[1754211668695,1.2818111,113790.0,113780.0,0.75917627]
[1754211671396,0.53182043,113790.0,113780.0,0.75917627]
[1754211671597,1.1060276,113790.0,113780.0,0.75917627]
[1754211672195,1.2818113,113790.0,113780.0,0.75917627]
[1754211673099,1.2818113,113790.0,113780.0,0.75000627]
[1754211674297,1.2818113,113790.0,113780.0,0.75353627]
[1754211674603,1.2818113,113790.0,113780.0,0.75917627]
[1754211678798,1.2818113,113790.0,113780.0,0.1849691]
[1754211679103,1.2818113,113790.0,113780.0,0.75917627]
[1754211679408,1.2818113,113790.0,113780.0,0.75353627]
[1754211680202,1.2818113,113790.0,113780.0,0.75000627]
[1754211680805,1.85601847,113790.0,113780.0,0.1757991]
[1754211681002,0.3024291,113780.0,113770.0,0.307657]
[1754211681202,1.2751167,113780.0,113770.0,0.307657]
[1754211681808,1.2751167,113780.0,113770.0,0.88186417]
[1754211682209,1.2761167,113780.0,113770.0,0.88186417]
[1754211682513,1.2771167,113780.0,113770.0,0.88186417]
[1754211683704,1.2771167,113780.0,113770.0,0.88539417]
[1754211689317,1.2771167,113780.0,113770.0,0.88186417]
[1754211690420,1.2771167,113780.0,113770.0,0.88465417]
[1754211691119,1.2771167,113780.0,113770.0,0.310447]
[1754211691424,1.2771167,113780.0,113770.0,0.88465417]
[1754211693918,1.2771167,113780.0,113770.0,0.88186417]
[1754211694819,1.2771167,113780.0,113770.0,0.88465417]
[1754211695821,0.70290953,113780.0,113770.0,0.88465417]
[1754211696029,1.2771167,113780.0,113770.0,0.88465417]
[1754211697924,1.2771167,113780.0,113770.0,0.88911417]
[1754211704939,1.2771167,113780.0,113770.0,0.314907]
[1754211705139,1.2771167,113780.0,113770.0,0.88911417]
[1754211706142,1.2771167,113780.0,113770.0,0.96799036]
[1754211707241,1.2771167,113780.0,113770.0,0.88911417]
[1754211708236,1.2771167,113780.0,113770.0,0.96799036]
[1754211710044,1.2771167,113780.0,113770.0,0.39378319]
[1754211710343,1.2771167,113780.0,113770.0,0.96799036]
[1754211712439,1.23943627,113780.0,113770.0,0.219753]
[1754211712645,0.3077044,113770.0,113760.0,0.25470089]
[1754211712844,1.280392,113770.0,113760.0,0.25470089]
[1754211714747,1.280392,113770.0,113760.0,0.1768247]
[1754211716147,1.282392,113770.0,113760.0,0.1758247]
[1754211716747,1.284392,113770.0,113760.0,0.1758247]
[1754211719445,0.71018483,113770.0,113760.0,0.1758247]
[1754211719645,1.284392,113770.0,113760.0,0.1758247]
[1754211721747,0.2275999,113760.0,113750.0,0.3077153]
[1754211722049,1.24106707,113760.0,113750.0,0.2637542]
[1754211722250,1.2787475,113760.0,113750.0,0.2637542]
[1754211722944,1.2797475,113760.0,113750.0,0.2637542]
[1754211723452,1.2807475,113760.0,113750.0,0.2637542]
[1754211724147,0.70654033,113760.0,113750.0,0.84332137]
[1754211724546,1.2807475,113760.0,113750.0,0.84332137]
[1754211729264,1.2807475,113760.0,113750.0,0.2691142]
[1754211729449,1.2807475,113760.0,113750.0,0.84332137]
[1754211732864,0.70654033,113760.0,113750.0,0.84332137]
[1754211733155,1.2807475,113760.0,113750.0,0.84332137]
[1754211733457,0.70654033,113760.0,113750.0,0.84332137]
[1754211733750,1.2807475,113760.0,113750.0,0.84332137]
[1754211738263,1.2807475,113760.0,113750.0,0.2691142]
[1754211738557,1.2807475,113760.0,113750.0,0.84332137]
[1754211740963,1.2807475,113760.0,113750.0,0.2691142]
[1754211741165,1.2807475,113760.0,113750.0,0.84332137]
[1754211744668,1.24306707,113760.0,113750.0,0.84332137]
[1754211744869,0.6688599,113760.0,113750.0,0.84332137]
[1754211745165,1.24306707,113760.0,113750.0,0.84332137]
[1754211745366,1.24306707,113760.0,113750.0,0.2691142]
[1754211745565,1.24306707,113760.0,113750.0,0.84332137]
[1754211745870,1.2807475,113760.0,113750.0,0.84332137]
[1754211748078,0.6688599,113760.0,113750.0,0.84332137]
[1754211748268,1.2807475,113760.0,113750.0,0.84332137]
[1754211749675,1.2807475,113760.0,113750.0,0.2691142]
[1754211749878,1.2807475,113760.0,113750.0,0.84332137]
[1754211752273,1.2807475,113760.0,113750.0,0.92219756]
[1754211753081,0.03968043,113760.0,113750.0,0.92219756]
[1754211753384,0.0262,113760.0,113750.0,1.20412137]
[1754211753685,0.0262,113760.0,113750.0,0.84332137]
[1754211753881,0.0262,113760.0,113750.0,1.20412137]
[1754211754285,0.0262,113760.0,113750.0,1.28325168]
[1754211754482,0.0252,113760.0,113750.0,1.28325168]
[1754211755986,0.0242,113760.0,113750.0,1.28425168]
[1754211757086,0.0242,113760.0,113750.0,1.20512137]
[1754211762787,0.1055,113760.0,113750.0,1.20512137]
[1754211762989,0.70193717,113760.0,113750.0,1.20512137]
[1754211763293,0.9154472,113760.0,113750.0,0.84432137]
[1754211765192,0.9164472,113760.0,113750.0,0.84432137]
[1754211765894,0.9174472,113760.0,113750.0,0.84332137]
[1754211767094,0.9174472,113760.0,113750.0,0.92245168]
[1754211768088,0.7416176,113760.0,113750.0,0.92245168]
[1754211770590,0.70393717,113760.0,113750.0,0.92245168]
[1754211770796,0.7416176,113760.0,113750.0,0.92245168]
[1754211776698,0.7416176,113760.0,113750.0,0.34824451]
[1754211776898,0.7416176,113760.0,113750.0,0.92245168]
[1754211778690,0.70393717,113760.0,113750.0,0.92245168]
[1754211779598,0.7416176,113760.0,113750.0,0.92245168]
[1754211780398,0.9174473,113760.0,113750.0,0.91709168]
[1754211780595,1.2782473,113760.0,113750.0,0.34288451]
[1754211781695,1.2782473,113760.0,113750.0,0.91709168]
[1754211781896,1.2782473,113760.0,113750.0,0.91773168]
[1754211782399,1.2782473,113760.0,113750.0,0.83963137]
[1754211784695,1.2782473,113760.0,113750.0,0.2637542]
[1754211784998,1.2782473,113760.0,113750.0,0.83796137]
[1754211785597,1.2782473,113760.0,113750.0,0.83860137]
[1754211788090,1.2782473,113760.0,113750.0,0.2643942]
[1754211788294,0.70404013,113760.0,113750.0,0.83860137]
[1754211788594,1.2782473,113760.0,113750.0,0.83860137]
[1754211789202,1.2782473,113760.0,113750.0,0.2637542]
[1754211789398,0.3017852,113750.0,113740.0,0.2285314]
[1754211789603,1.23679237,113750.0,113740.0,0.29894221]
[1754211789802,1.2744728,113750.0,113740.0,0.29894221]
[1754211790997,1.2744728,113750.0,113740.0,0.2198119]
[1754211793306,1.2744728,113750.0,113740.0,0.2208119]
[1754211796412,1.2744728,113750.0,113740.0,0.28404497]
[1754211797810,0.70026563,113750.0,113740.0,0.28404497]
[1754211798009,1.2744728,113750.0,113740.0,0.28404497]
[1754211802112,1.2744728,113750.0,113740.0,0.2208119]
[1754211802609,1.0986276,113750.0,113740.0,0.2208119]
[1754211802818,1.0986276,113750.0,113740.0,0.79574907]
[1754211803015,0.48674,113750.0,113740.0,0.79620907]
[1754211803515,0.12594,113750.0,113740.0,0.79620907]
[1754211803720,0.12594,113750.0,113740.0,0.2220019]
[1754211803921,0.12594,113750.0,113740.0,0.79620907]
[1754211805422,0.70014717,113750.0,113740.0,0.79620907]
[1754211806023,0.12594,113750.0,113740.0,0.79620907]
[1754211807326,0.70014717,113750.0,113740.0,0.79620907]
[1754211807824,0.12594,113750.0,113740.0,0.79620907]
[1754211810327,1.06091717,113760.0,113750.0,0.1758444]
[1754211810523,1.0985976,113760.0,113750.0,0.81328232]
[1754211811623,1.0995976,113760.0,113750.0,0.81328232]
[1754211812330,1.1005976,113760.0,113750.0,0.81328232]
[1754211813529,1.1005976,113760.0,113750.0,0.75005157]
[1754211817538,0.16559043,113760.0,113750.0,0.75005157]
[1754211817734,0.12791,113760.0,113750.0,0.75005157]
[1754211818136,0.12791,113760.0,113750.0,0.1758444]
[1754211818330,0.12791,113760.0,113750.0,0.75005157]
[1754211818528,0.12691,113760.0,113750.0,0.75005157]
[1754211818842,0.12591,113760.0,113750.0,0.83018188]
[1754211819540,0.12591,113760.0,113750.0,0.75105157]
[1754211820730,0.70011717,113760.0,113750.0,0.75105157]
[1754211823644,0.70011717,113760.0,113750.0,0.1768444]
[1754211823844,0.70011717,113760.0,113750.0,0.75105157]
[1754211825641,0.87594607,113760.0,113750.0,0.75105157]
[1754211827946,0.70011717,113760.0,113750.0,0.75105157]
[1754211828148,0.87594617,113760.0,113750.0,0.75105157]
[1754211828946,0.70011717,113760.0,113750.0,0.75105157]
[1754211830252,0.70011717,113760.0,113750.0,0.1768444]
[1754211830546,0.70011717,113760.0,113750.0,0.75105157]
[1754211833350,0.70011717,113760.0,113750.0,0.1768444]
[1754211833651,0.70011717,113760.0,113750.0,0.75105157]
[1754211833950,1.2744266,113760.0,113750.0,0.1768444]
[1754211834150,1.84863377,113760.0,113750.0,0.1768444]
[1754211834742,1.2744266,113760.0,113750.0,0.1768444]
[1754211835653,1.2744266,113760.0,113750.0,0.75105157]
[1754211835850,1.2744266,113760.0,113750.0,0.75005157]
[1754211836050,1.2754266,113760.0,113750.0,0.75005157]
[1754211836355,1.0995976,113760.0,113750.0,0.75005157]
[1754211837057,1.1005976,113760.0,113750.0,0.75005157]
[1754211837656,0.52639043,113760.0,113750.0,0.75005157]
[1754211838053,1.1005976,113760.0,113750.0,0.75005157]
[1754211838254,0.7397976,113760.0,113750.0,0.75005157]
[1754211839057,0.7387976,113760.0,113750.0,0.75105157]
[1754211839254,1.0995976,113760.0,113750.0,0.1768444]
[1754211839455,1.0995976,113760.0,113750.0,0.75105157]
[1754211840555,1.0985976,113760.0,113750.0,0.75105157]
[1754211840957,1.0985976,113760.0,113750.0,0.75005157]
[1754211841158,1.0995976,113760.0,113750.0,0.75005157]
[1754211841461,1.0995976,113760.0,113750.0,0.1758444]
[1754211841661,1.0995976,113760.0,113750.0,0.75005157]
[1754211841858,1.1005976,113760.0,113750.0,0.75005157]
[1754211842557,1.0995976,113760.0,113750.0,0.75005157]
[1754211842757,1.0995976,113760.0,113750.0,0.75105157]
[1754211843062,1.0995976,113760.0,113750.0,0.1768444]
[1754211843360,1.0995976,113760.0,113750.0,0.75105157]
[1754211843561,1.0985976,113760.0,113750.0,0.83018188]
[1754211843966,0.16359043,113760.0,113750.0,0.83018188]
[1754211844154,0.16359043,113760.0,113750.0,0.1768444]
[1754211844354,0.16359043,113760.0,113750.0,0.83018188]
[1754211844565,0.7377976,113760.0,113750.0,0.83018188]
[1754211845460,0.16359043,113760.0,113750.0,0.83018188]
[1754211845862,0.16359043,113760.0,113750.0,0.25597471]
[1754211846065,0.16359043,113760.0,113750.0,0.83018188]
[1754211846462,0.7377976,113760.0,113750.0,0.83018188]
[1754211850567,0.16359043,113760.0,113750.0,0.83018188]
[1754211850868,0.7377976,113760.0,113750.0,0.83018188]
[1754211857772,0.70011717,113760.0,113750.0,0.83018188]
[1754211858474,0.12591,113760.0,113750.0,0.83018188]
[1754211858667,0.16359043,113760.0,113750.0,0.83018188]
[1754211858973,0.7377976,113760.0,113750.0,0.83018188]
[1754211859671,0.16359043,113760.0,113750.0,0.83018188]
[1754211862568,0.7377976,113760.0,113750.0,0.83018188]
[1754211864271,0.7386576,113760.0,113750.0,0.83018188]
[1754211865170,0.16445043,113760.0,113750.0,0.83018188]
[1754211866271,0.06163043,113760.0,113750.0,1.11185157]
[1754211868180,0.12211043,113760.0,113750.0,1.11185157]
[1754211868385,0.16301043,113760.0,113750.0,1.11185157]
[1754211869878,0.16301043,113760.0,113750.0,0.75105157]
[1754211870375,0.16301043,113760.0,113750.0,0.1768444]
[1754211870582,0.16301043,113760.0,113750.0,0.75105157]
[1754211875281,0.16301043,113760.0,113750.0,0.1768444]
[1754211875477,0.16301043,113760.0,113750.0,0.75105157]
[1754211876281,0.16301043,113760.0,113750.0,0.83018188]
[1754211876879,0.14317043,113760.0,113750.0,0.83018188]
[1754211877081,0.16164043,113760.0,113750.0,0.83018188]
[1754211877983,0.7358476,113760.0,113750.0,0.83018188]
[1754211881887,0.16164043,113760.0,113750.0,0.83018188]
[1754211882188,0.7358476,113760.0,113750.0,0.75105157]
[1754211885391,0.9116764,113760.0,113750.0,0.75105157]
[1754211888292,0.33746923,113760.0,113750.0,0.75105157]
[1754211888493,0.9116764,113760.0,113750.0,0.75105157]
[1754211892297,0.9116764,113760.0,113750.0,0.83018188]
[1754211894800,0.9116764,113760.0,113750.0,0.25597471]
[1754211894999,0.9116764,113760.0,113750.0,0.83018188]
[1754211898102,0.33746923,113760.0,113750.0,0.83018188]
[1754211898302,0.9116764,113760.0,113750.0,0.83018188]
[1754211899603,0.33746923,113760.0,113750.0,0.83018188]
[1754211899903,0.9116764,113760.0,113750.0,0.83018188]
[1754211902603,0.87399597,113760.0,113750.0,0.83018188]
[1754211903003,0.87399597,113760.0,113750.0,0.25597471]
[1754211903197,1.80900314,113760.0,113750.0,0.25597471]
[1754211903503,1.23479597,113760.0,113750.0,0.1768444]
[1754211903800,1.2724764,113760.0,113750.0,0.1768444]
[1754211904304,1.2724764,113760.0,113750.0,0.75005157]
[1754211904506,1.2724764,113760.0,113750.0,0.75105157]
[1754211905104,1.2734764,113760.0,113750.0,0.1758444]
[1754211905303,1.2734764,113760.0,113750.0,0.75005157]
[1754211905705,1.2724764,113760.0,113750.0,0.75005157]
[1754211905904,1.2724764,113760.0,113750.0,0.75105157]
[1754211906603,1.2734764,113760.0,113750.0,0.75105157]
[1754211907205,1.2724764,113760.0,113750.0,0.75105157]
[1754211912304,0.16164043,113760.0,113750.0,0.75105157]
[1754211912513,0.16164043,113760.0,113750.0,1.19098188]
[1754211913610,0.16164043,113760.0,113750.0,0.83018188]
[1754211913804,0.16164043,113760.0,113750.0,1.19098188]
[1754211916813,0.12396,113760.0,113750.0,1.19098188]
[1754211917013,0.16164043,113760.0,113750.0,1.19098188]
[1754211918315,0.16164043,113760.0,113750.0,0.83018188]
[1754211918613,0.16164043,113760.0,113750.0,1.19098188]
[1754211921216,0.06163043,113760.0,113750.0,1.19098188]
[1754211921720,0.03768043,113760.0,113750.0,1.76518905]
[1754211921926,0.03768043,113760.0,113750.0,1.19098188]
[1754211922109,0.06114043,113760.0,113750.0,1.19098188]
[1754211922311,0.06114043,113760.0,113750.0,1.11185157]
[1754211924316,0.13354043,113760.0,113750.0,1.11185157]
[1754211924525,0.16312043,113760.0,113750.0,1.11185157]
[1754211927530,0.12544,113760.0,113750.0,1.11185157]
[1754211927716,0.16312043,113760.0,113750.0,1.11185157]
[1754211934733,0.12544,113760.0,113750.0,1.11185157]
[1754211935630,0.16312043,113760.0,113750.0,1.11185157]
[1754211936025,0.16312043,113760.0,113750.0,1.19098188]
[1754211936225,0.16312043,113760.0,113750.0,1.19298188]
[1754211936734,0.14493043,113760.0,113750.0,1.19298188]
[1754211936930,0.10998043,113760.0,113750.0,1.19298188]
[1754211937234,0.10998043,113760.0,113750.0,0.83218188]
[1754211937436,0.10998043,113760.0,113750.0,1.19298188]
[1754211939234,0.10998043,113760.0,113750.0,1.11385157]
[1754211940335,0.10998043,113760.0,113750.0,1.22857549]
[1754211943634,0.10998043,113760.0,113750.0,0.86777549]
[1754211943934,0.10998043,113760.0,113750.0,1.22857549]
[1754211944133,0.02297,113770.0,113750.0,1.74166218]
[1754211944338,0.06065043,113770.0,113760.0,1.99360602]
[1754211945038,0.09383043,113770.0,113760.0,1.99360602]
[1754211946940,0.12025043,113770.0,113760.0,1.99360602]
[1754211947238,0.13691043,113770.0,113760.0,1.91448958]
[1754211947630,0.16000043,113770.0,113760.0,1.91448958]
[1754211947842,0.16000043,113770.0,113760.0,1.99460602]
[1754211948440,0.16000043,113770.0,113760.0,1.99360602]
[1754211951632,0.11016043,113770.0,113760.0,1.99360602]
[1754211957339,0.06065043,113770.0,113760.0,1.99360602]
[1754211958233,0.06065043,113770.0,113760.0,0.61574384]
[1754211958435,0.06065043,113770.0,113760.0,1.30467493]
[1754211959441,0.06065043,113770.0,113760.0,1.99360602]
[1754211963045,0.06065043,113770.0,113760.0,1.30467493]
[1754211963649,0.23646243,113770.0,113760.0,0.94387493]
[1754211965849,0.33845243,113770.0,113760.0,0.25494384]
[1754211966050,1.02738352,113770.0,113760.0,0.94387493]
[1754211966441,1.38818352,113770.0,113760.0,0.94387493]
[1754211967542,1.35050309,113770.0,113760.0,0.94387493]
[1754211967748,1.38818352,113770.0,113760.0,0.94387493]
[1754211968851,1.38818352,113770.0,113760.0,0.25494384]
[1754211969051,0.69925243,113770.0,113760.0,0.94387493]
[1754211969354,1.02738352,113770.0,113760.0,0.94387493]
[1754211970153,1.38818352,113770.0,113760.0,0.94387493]
[1754211970852,1.38818352,113770.0,113760.0,0.86475849]
[1754211973652,0.69925243,113770.0,113760.0,0.86475849]
[1754211973950,1.38818352,113770.0,113760.0,0.86475849]
[1754211975852,1.35050309,113770.0,113760.0,0.86475849]
[1754211976052,1.38818352,113770.0,113760.0,0.86475849]
[1754211977045,1.02738352,113770.0,113760.0,0.86475849]
[1754211977246,1.38818352,113770.0,113760.0,0.86475849]
[1754211981755,0.69925243,113770.0,113760.0,0.86475849]
[1754211986161,0.33845243,113770.0,113760.0,0.86475849]
[1754211986466,0.69925243,113770.0,113760.0,0.86475849]
[1754211986668,0.33845243,113770.0,113760.0,0.86475849]
[1754211986960,0.69925243,113770.0,113760.0,0.86475849]
[1754211987570,1.38818352,113770.0,113760.0,0.86475849]
[1754211994666,1.38818352,113770.0,113760.0,0.94387493]
[1754212000972,1.38818352,113770.0,113760.0,0.86475849]
[1754212001272,1.38818352,113770.0,113760.0,0.94387493]
[1754212002470,1.38818352,113770.0,113760.0,0.1758274]
[1754212002765,1.38818352,113770.0,113760.0,0.86475849]
[1754212005270,0.69925243,113770.0,113760.0,0.86475849]
[1754212005580,1.38818352,113770.0,113760.0,0.86475849]
[1754212006073,1.38918352,113770.0,113760.0,0.86475849]
[1754212006272,1.39018352,113770.0,113760.0,0.86475849]
[1754212008471,1.39018352,113770.0,113760.0,0.1758274]
[1754212010271,1.39018352,113770.0,113760.0,0.25494384]
[1754212010567,1.39018352,113770.0,113760.0,0.1758274]
[1754212012573,0.70125243,113770.0,113760.0,0.1758274]
[1754212012763,1.39018352,113770.0,113760.0,0.1758274]
[1754212019679,1.35250309,113770.0,113760.0,0.1758274]
[1754212020574,1.39018352,113770.0,113760.0,0.1758274]
[1754212025277,0.70125243,113770.0,113760.0,0.1758274]
[1754212025481,1.39018352,113770.0,113760.0,0.1758274]
[1754212031086,0.2955575,113760.0,113750.0,0.29890484]
[1754212031286,0.2955729,113750.0,113740.0,0.34289174]
[1754212031580,0.2955884,113740.0,113730.0,0.29934664]
[1754212031777,1.34531949,113740.0,113730.0,0.37850693]
[1754212031977,1.38299992,113740.0,113730.0,0.37850693]
[1754212032378,1.38299992,113740.0,113730.0,0.37847293]
[1754212032884,1.38199992,113740.0,113730.0,0.37847293]
[1754212033084,1.37999992,113740.0,113730.0,0.37847293]
[1754212033276,1.37999992,113740.0,113730.0,0.36984648]
[1754212033884,1.37999992,113740.0,113730.0,0.37484648]
[1754212034385,1.37999992,113740.0,113730.0,0.37184648]
[1754212034886,1.37999992,113740.0,113730.0,0.37284648]
[1754212037387,1.37999992,113740.0,113730.0,0.29372019]
[1754212038191,1.37999992,113740.0,113730.0,0.30264752]
[1754212039690,1.01919992,113740.0,113730.0,0.30264752]
[1754212039893,1.37999992,113740.0,113730.0,0.30264752]
[1754212040090,1.01919992,113740.0,113730.0,0.30264752]
[1754212040284,1.37999992,113740.0,113730.0,0.30264752]
[1754212040591,1.34231949,113740.0,113730.0,0.30264752]
[1754212040796,1.37999992,113740.0,113730.0,0.30264752]
[1754212045699,1.01919992,113740.0,113730.0,0.30264752]
[1754212045892,1.37999992,113740.0,113730.0,0.30264752]
[1754212051608,0.6533884,113740.0,113730.0,0.30264752]
[1754212051809,1.34231949,113740.0,113730.0,0.99157861]
[1754212052707,1.37999992,113740.0,113730.0,0.99157861]
[1754212057013,1.01919992,113740.0,113730.0,0.99157861]
[1754212057316,1.37999992,113740.0,113730.0,0.99157861]
[1754212059715,1.34231949,113740.0,113730.0,0.99157861]
[1754212059917,1.37999992,113740.0,113730.0,0.99157861]
[1754212060107,1.01919992,113740.0,113730.0,0.99157861]
[1754212060302,1.37999992,113740.0,113730.0,0.99157861]
[1754212063519,1.37999992,113740.0,113730.0,0.30264752]
[1754212070622,1.01919992,113740.0,113730.0,0.30264752]
[1754212070817,1.37999992,113740.0,113730.0,0.30264752]
[1754212073325,1.01919992,113740.0,113730.0,0.30264752]
[1754212073525,1.37999992,113740.0,113730.0,0.30264752]
[1754212076125,1.37999992,113740.0,113730.0,0.38177381]
[1754212078029,1.01919992,113740.0,113730.0,0.38177381]
[1754212078228,1.37999992,113740.0,113730.0,0.38177381]
[1754212079422,0.69106883,113740.0,113730.0,0.38177381]
[1754212079618,1.37999992,113740.0,113730.0,0.38177381]
[1754212080930,0.69106883,113740.0,113730.0,0.38177381]
[1754212081131,1.37999992,113740.0,113730.0,1.0707049]
[1754212083426,0.84634152,113740.0,113730.0,1.0707049]
[1754212083827,0.15741043,113740.0,113730.0,1.0707049]
[1754212084030,0.84634152,113740.0,113730.0,1.0707049]
[1754212090138,0.80866109,113740.0,113730.0,1.0707049]
[1754212090341,0.84634152,113740.0,113730.0,1.0707049]
[1754212091840,0.15741043,113740.0,113730.0,1.0707049]
[1754212092037,0.84634152,113740.0,113730.0,1.0707049]
[1754212093744,0.80866109,113740.0,113730.0,1.0707049]
[1754212094747,0.84634152,113740.0,113730.0,1.0707049]
[1754212099353,0.15741043,113740.0,113730.0,0.38177381]
[1754212099653,0.84634152,113740.0,113730.0,1.0707049]
[1754212102354,0.84634152,113740.0,113730.0,0.99157861]
[1754212102555,0.15741043,113740.0,113730.0,0.99157861]
[1754212102750,0.84634152,113740.0,113730.0,0.99157861]
[1754212104755,0.15741043,113740.0,113730.0,0.99157861]
[1754212104952,0.84634152,113740.0,113730.0,0.99157861]
[1754212108157,0.84634152,113740.0,113730.0,0.30264752]
[1754212108462,0.84634152,113740.0,113730.0,0.99157861]
[1754212109055,0.15741043,113740.0,113730.0,0.99157861]
[1754212109254,0.84634152,113740.0,113730.0,0.30264752]
[1754212109554,0.84634152,113740.0,113730.0,0.99157861]
[1754212112563,1.02219982,113740.0,113730.0,0.30264752]
[1754212113056,0.33326873,113740.0,113730.0,0.30264752]
[1754212113461,1.02219982,113740.0,113730.0,0.99157861]
[1754212113963,1.02219982,113740.0,113730.0,1.0707049]
[1754212114165,1.02219982,113740.0,113730.0,0.38177381]
[1754212114365,1.02219982,113740.0,113730.0,1.0707049]
[1754212117757,1.38299982,113740.0,113730.0,1.0707049]
[1754212118071,0.69406873,113740.0,113730.0,1.0707049]
[1754212118266,1.38299982,113740.0,113730.0,1.0707049]
[1754212119570,1.38299982,113740.0,113730.0,0.30264752]
[1754212120069,1.38299982,113740.0,113730.0,0.25868102]